[Event "1st Serbian League 2022"]
[Site "Vrnjacka Banja"]
[Date "2022.09.24"]
[Round "5.36"]
[White "Todorovic, Goran N"]
[Black "Stankovic, Milos"]
[Result "1/2-1/2"]
[ECO "D55"]
[WhiteElo "2305"]
[BlackElo "2439"]
[Annotator "TA"]
[PlyCount "97"]
[EventDate "2022.09.20"]
[EventType "team-tourn"]
[EventCountry "SRB"]
[SourceTitle "playchess.com"]
[Source "ChessBase"]
[SourceQuality "1"]
[TimeControl "40/5400+30:1800+30"]

{[%evp 18,97,12,10,6,8,22,13,20,16,11,0,0,0,12,9,20,-4,0,0,23,16,42,41,53,40,43,44,62,32,40,50,69,32,120,59,94,51,106,41,42,58,246,245,335,249,241,161,152,163,136,111,277,160,184,187,201,184,482,270,545,419,419,417,392,0,0,0,0,0,0,0,0,0,0,0,0,0,0,0,0,0]} 1. Nf3 {[%emt 0:00:10]} Nf6 {[%emt 0:00:19]} 2. c4 {[%emt 0:00:37]} e6 {[%emt 0:00:30]} 3. Nc3 {[%emt 0:01:01]} d5 {[%emt 0:00:28]} 4. d4 {[%emt 0:03:05]} Be7 {[%emt 0:00:38]} 5. Bg5 {[%emt 0:00:48]} O-O {[%emt 0:00:35]} 6. e3 {[%emt 0:00:16]} b6 {[%emt 0:01:16]} 7. cxd5 {[%emt 0:05:29]} Nxd5 {[%emt 0:01:28]} 8. Bxe7 {[%emt 0:06:08]} Qxe7 {[%emt 0:00:30]} 9. Nxd5 {[%emt 0:00:23]} exd5 {[%emt 0:00:25]} 10. Rc1 $1 {[%emt 0:01:16] 10.Rc1 scores better than 10.Bd3.} Bb7 {[%emt 0:01:33] D55: Queen's Gambit Declined: 4 Bg5 Be7: Lines without ...h6 and 6...h6 7 Bxf6.} 11. Bd3 {[%emt 0:14:29]} c5 {[%emt 0:00:31]} 12. dxc5 {[%emt 0:03:48]} bxc5 {[%emt 0:00:34]} 13. O-O {[%emt 0:02:54]} Nd7 {[%emt 0:01:32] [#]} 14. Qb3 $146 {[%emt 0:05:12]} ({Predecessor:} 14. Bf5 Nf6 15. Qc2 g6 16. Bh3 Ne4 17. Rfd1 Rfd8 18. g3 Bc8 19. Bg2 Bf5 20. Nh4 Nxg3 21. Nxf5 Nxf5 22. Qxc5 {1-0 (53) Georgiev,V (2511)-Colas,J (2352) Chicago 2017}) 14... Rab8 {[%emt 0:25:49]} 15. Qa3 {[%emt 0:00:30]} d4 {[%emt 0:00:48]} 16. e4 $1 {[%emt 0:08:52]} (16. exd4 Bxf3 17. gxf3 Qg5+ 18. Kh1 cxd4 $15) 16... Qd6 {[%emt 0:09:23]} 17. Rfd1 {[%emt 0:10:55][%cal Of3d4]} Qb6 {[%emt 0:05:35]} 18. Nd2 {[%emt 0:06:12]} Rfe8 {[%emt 0:04:40]} 19. f3 {[%emt 0:02:50]} h5 {[%emt 0:07:35]} 20. Nc4 {[%emt 0:03:08]} Qc7 {[%emt 0:02:31]} 21. Qa5 {[%emt 0:00:52]} (21. Qxa7 $2 Ra8 22. Qxa8 Rxa8 $19) 21... Qf4 {[%emt 0:00:36]} 22. Qd2 {[%emt 0:01:41]} Qf6 {[%emt 0:00:40]} 23. b3 {[%emt 0:02:49]} (23. Re1 {looks sharper.} Ba6 24. e5 Qc6 25. Qg5) 23... h4 {[%emt 0:00:28][%cal Oh4h3]} 24. h3 {[%emt 0:00:30]} Re7 {[%emt 0:06:28]} 25. Bf1 {[%emt 0:01:45]} Rbe8 {[%emt 0:02:55]} (25... Ba6 $14) 26. Nb2 {[%emt 0:03:26]} (26. b4 $1 $16) 26... Rc8 $14 {[%emt 0:04:15]} 27. Nd3 {[%emt 0:14:54]} Re6 {[%emt 0:04:03]} ({Better is} 27... Ree8 $14) 28. Rc2 {[%emt 0:00:00]} (28. b4 $1 $16) 28... Qe7 {[%emt 0:00:48]} 29. Rdc1 {[%emt 0:00:00]} f5 $2 {[%emt 0:03:34]} (29... Rec6 $14) 30. Nf4 $18 {[%emt 0:00:00]} Rf6 {[%emt 0:03:01]} 31. exf5 {[%emt 0:00:00]} Ne5 {[%emt 0:00:51]} 32. Nd3 {[%emt 0:00:11] aiming for Re1.} Rxf5 {[%emt 0:01:05][%cal Oe5f3]} 33. Nxe5 {[%emt 0:00:14]} Rxe5 {[%emt 0:00:14] [#]} 34. b4 $1 {[%emt 0:00:15]} Qd6 $2 {[%emt 0:02:33]} (34... Rd8 $16 35. Rxc5 (35. bxc5 Bc6 $16) 35... Rxc5 36. bxc5 (36. Rxc5 d3 $16) 36... d3) 35. Qf4 {[%emt 0:00:51]} (35. bxc5 $18 Qf6 36. Qxd4) 35... g5 {[%emt 0:03:53]} 36. Qd2 {[%emt 0:01:00]} Qb6 {[%emt 0:01:38]} 37. f4 {[%emt 0:00:28]} Rf5 {[%emt 0:02:35]} (37... d3) 38. Bc4+ {[%emt 0:00:57]} (38. Bd3 $142 Rxf4 39. Rxc5 Rxc5 40. Rxc5) 38... Kh8 $2 {[%emt 0:01:00]} (38... Bd5 39. fxg5 Bxc4 40. Rxc4 Rc7) 39. bxc5 {[%emt 0:00:08]} Qf6 {[%emt 0:00:11]} 40. fxg5 {[%emt 0:00:36]} Rxg5 {[%emt 0:00:13] [#]} 41. Bf1 {[%emt 0:30:09]} ({Weaker is} 41. Rf1 Qe5 $16) (41. c6 $1 $18 {[%cal Rc6b7]} Rxc6 42. Rf1) 41... Be4 $11 {[%emt 0:32:29] The position is equal.} 42. Rc4 {[%emt 0:01:38]} Rcg8 {[%emt 0:00:40]} 43. c6 {[%emt 0:00:00] Black must now prevent Rc5.} Bxg2 {[%emt 0:00:00]} 44. Bxg2 {[%emt 0:00:00]} Rxg2+ {[%emt 0:00:00]} 45. Qxg2 {[%emt 0:00:00]} Rxg2+ {[%emt 0:00:00]} 46. Kxg2 {[%emt 0:00:00] KQ-KRR} Qg5+ {[%emt 0:00:00]} 47. Kh1 {[%emt 0:00:00]} Qd5+ {[%emt 0:00:00]} 48. Kg1 {[%emt 0:00:00]} Qg5+ {[%emt 0:00:00]} 49. Kh1 {[%emt 0:00:00] Black escapes into a draw.  Weighted Error Value: White=0.34/Black=0.40} 1/2-1/2

[Event "1st Serbian League 2022"]
[Site "Vrnjacka Banja"]
[Date "2022.09.25"]
[Round "6.1"]
[White "Yilmazyerli, Mert"]
[Black "Risteski, Emil"]
[Result "1-0"]
[ECO "B33"]
[WhiteElo "2533"]
[BlackElo "2364"]
[Annotator "TA"]
[PlyCount "53"]
[EventDate "2022.09.20"]
[EventType "team-tourn"]
[EventCountry "SRB"]
[SourceTitle "playchess.com"]
[Source "ChessBase"]
[SourceQuality "1"]
[TimeControl "40/5400+30:1800+30"]

{[%evp 22,53,48,21,59,47,21,41,24,36,29,35,195,166,195,0,0,-3,-13,-8,83,87,430,426,426,370,365,351,1567,1333,29994,29995,29996,29997]} 1. e4 {[%emt 0:06:53]} c5 {[%emt 0:00:24]} 2. Nc3 {[%emt 0:00:06]} Nc6 {[%emt 0:00:15]} 3. Nge2 {[%emt 0:00:11][%cal Bg1e2,Be2d4,Bd4b5][%mdl 32]} Nf6 {[%emt 0:02:56]} 4. d4 {[%emt 0:00:15]} cxd4 {[%emt 0:00:23]} 5. Nxd4 {[%emt 0:00:06]} e5 {[%emt 0:03:10]} 6. Ndb5 {[%emt 0:00:13]} d6 {[%emt 0:00:06]} 7. Nd5 {[%emt 0:00:04]} Nxd5 {[%emt 0:00:08]} 8. exd5 {[%emt 0:00:05]} Ne7 {[%emt 0:02:19]} 9. c4 {[%emt 0:00:12]} Ng6 {[%emt 0:00:03]} 10. Qa4 {[%emt 0:00:04]} Bd7 {[%emt 0:00:03]} 11. Qb4 {[%emt 0:00:06]} Qb8 {[%emt 0:01:07]} 12. Be3 {[%emt 0:00:26] Hoping for Qa5.} (12. h4 $5 {[%cal Rh4h5]}) 12... f5 {[%emt 0:09:51] [#] B33: Sicilian: Pelikan and Sveshnikov Variations.} 13. c5 $146 {[%emt 0:00:09]} ({Predecessor:} 13. h4 a6 14. h5 axb5 15. hxg6 h6 16. cxb5 Be7 17. a4 O-O 18. Be2 f4 19. Bb6 Bg5 20. Ra3 {1-0 (32) Gubas,J (2312)-Binas,J (2164) ICCF email 2014}) 13... f4 {[%emt 0:06:56]} 14. c6 $1 {[%emt 0:00:13]} bxc6 {[%emt 0:08:46] White is slightly better.} 15. dxc6 {[%emt 0:00:11]} Bxc6 {[%emt 0:03:34]} 16. Rc1 {[%emt 0:00:06]} Bxb5 {[%emt 0:03:41]} (16... Qb7 $14 17. Nc7+ Kd8 18. Qxb7 Bxb7 19. Nxa8 fxe3) 17. Bxb5+ $18 {[%emt 0:02:06]} Ke7 {[%emt 0:00:23] ...a6 is the strong threat.} 18. Qa5 {[%emt 0:38:25]} (18. Bd2 a6 19. Bc4 Qxb4 20. Bxb4 Kf6 $11) (18. Qc4 $1 $18) 18... fxe3 $11 {[%emt 0:05:04]} 19. Rc7+ {[%emt 0:01:00]} Kf6 {[%emt 0:00:24]} 20. fxe3 {[%emt 0:00:10] And now 0-0+ would win.} Qb6 {[%emt 0:10:58]} (20... Kg5 $11 {remains equal.} 21. O-O h5) 21. O-O+ $16 {[%emt 0:00:40][%mdl 1024] White has strong compensation.} Kg5 $2 {[%emt 0:02:19][%mdl 8192]} (21... Nf4 $16 22. Qxb6 axb6) 22. Qe1 $1 $18 {[%emt 0:01:02] Intending Qg3+ and mate.} h5 {[%emt 0:01:22] [#]} (22... Qxc7 23. Qg3+ Kh6 24. Qh3+) 23. Bd3 {[%emt 0:20:06] Qg3+ would kill now.} Kh6 {[%emt 0:06:38] [#] Threatens to win with ...e4.} (23... Nf4 {is a self mate.} 24. Qg3+ (24. Be4 $2 d5 $19) 24... Kh6 25. Rxf4 $1 d5 26. h4 $1 e4 27. Qg5+ Kh7 28. Rxe4 $1 {[%mdl 512]} Qg6 29. Qxg6+ Kg8 30. Qf7+ Kh7 31. Re6#) 24. Qg3 $1 {[%emt 0:14:13][%csl Gd3][%cal Rg3g6]} e4 $2 {[%emt 0:05:42] [#]} (24... d5) 25. Rf5 $1 {[%emt 0:00:23] White threatens Qg5+ and mate.} exd3 {[%emt 0:07:35]} (25... d5 26. Be2) 26. Qf3 {[%emt 0:00:27][%csl Gf5,LRa8,LRh5][%cal Rf3h5]} Nf4 {[%emt 0:02:49]} 27. Qxf4+ {[%emt 0:00:06] Weighted Error Value: White=0.13 (very precise) /Black=0.85} 1-0

[Event "1st Serbian League 2022"]
[Site "Vrnjacka Banja"]
[Date "2022.09.25"]
[Round "6.2"]
[White "Djokic, Mihailo"]
[Black "Gokerkan, Cem Kaan"]
[Result "0-1"]
[ECO "B92"]
[WhiteElo "2197"]
[BlackElo "2465"]
[Annotator "TA"]
[PlyCount "126"]
[EventDate "2022.09.20"]
[EventType "team-tourn"]
[EventCountry "SRB"]
[SourceTitle "playchess.com"]
[Source "ChessBase"]
[SourceQuality "1"]
[TimeControl "40/5400+30:1800+30"]

{[%evp 14,126,0,-2,0,0,0,0,0,0,0,0,0,0,0,-15,0,-25,14,15,7,-13,-12,-11,0,-47,-35,-130,-129,-119,-129,-118,-112,-125,-118,-185,-154,-146,-142,-219,-205,-204,-178,-167,-169,-162,-95,-169,-157,-277,-139,-168,-164,-215,-216,-227,-182,-168,0,-238,-213,-224,-227,-223,-213,-214,-220,-212,-210,-273,-272,-318,-313,-348,-351,-343,-345,-337,-350,-341,-347,-343,-348,-348,-348,-341,-351,-435,-422,-547,-549,-612,-611,-644,-644,-644,-639,-637,-629,-1432,-1525,-1379,-1397,-1675,-1655,-1936,-1886,-1978,-1899,-1625,-1585,-2180,-1930,-29985,-29986]} 1. e4 {[%emt 0:00:03]} c5 {[%emt 0:03:15]} 2. Nf3 {[%emt 0:00:04]} d6 {[%emt 0:00:05]} 3. d4 {[%emt 0:00:02]} cxd4 {[%emt 0:00:05]} 4. Nxd4 {[%emt 0:00:03]} Nf6 {[%emt 0:00:04]} 5. Nc3 {[%emt 0:00:03]} a6 {[%emt 0:00:05]} 6. Be2 {[%emt 0:00:16]} e5 {[%emt 0:00:58]} 7. Nf3 {[%emt 0:00:05]} Be7 {[%emt 0:00:10]} 8. Bg5 {[%emt 0:00:04]} Be6 {[%emt 0:00:11] B92: Sicilian Najdorf: 6 Be2.} 9. Bxf6 {[%emt 0:00:06]} Bxf6 {[%emt 0:00:03]} 10. Nd5 {[%emt 0:00:08]} Nd7 {[%emt 0:00:08] The position is equal.} 11. Bc4 {[%emt 0:00:25]} Rc8 {[%emt 0:01:54]} 12. Qe2 {[%emt 0:02:08]} Nb6 {[%emt 0:01:19]} 13. Nxf6+ {[%emt 0:03:25]} Qxf6 {[%emt 0:01:02] [#]} 14. Bb3 $146 {[%emt 0:02:12]} ({Predecessor:} 14. Bxe6 Qxe6 15. b3 d5 16. exd5 Nxd5 17. O-O O-O 18. c4 Nf4 19. Qxe5 Qg4 20. g3 {½-½ (49) To,N (2363)-Lu,M (2370) Balatonlelle 2019}) 14... O-O {[%emt 0:15:40]} (14... Bg4 {is more complex.} 15. O-O-O Nd7 16. Rhg1 Nc5) 15. Rd1 {[%emt 0:04:54]} Bxb3 {[%emt 0:21:56]} 16. axb3 {[%emt 0:00:56]} d5 {[%emt 0:00:05]} 17. O-O {[%emt 0:07:10]} d4 {[%emt 0:00:53]} 18. Rd3 {[%emt 0:03:09]} Nd7 {[%emt 0:00:46]} 19. Ne1 {[%emt 0:00:07]} (19. b4 $11) 19... Nc5 $15 {[%emt 0:00:52]} 20. Rg3 {[%emt 0:00:55] [#]} (20. Rd2 $15) 20... Qc6 $1 $17 {[%emt 0:03:10]} 21. Rg4 {[%emt 0:03:22]} Rfe8 {[%emt 0:07:07]} 22. Rh4 {[%emt 0:03:22]} Re6 {[%emt 0:04:32] Black is more active.} 23. Nf3 {[%emt 0:01:37]} h6 {[%emt 0:03:37]} 24. Rd1 {[%emt 0:00:14]} (24. Rg4 $17) 24... Qb5 {[%emt 0:01:54]} 25. Qd2 {[%emt 0:06:46]} d3 {[%emt 0:05:49]} 26. cxd3 {[%emt 0:02:42]} (26. h3 $17) 26... Rd8 {[%emt 0:03:20]} (26... Qxb3 27. d4 Nd3 28. Nxe5 Nxe5 29. dxe5 $15) (26... Nxb3 27. Qe3 $17) 27. h3 {[%emt 0:08:44]} Qxd3 {[%emt 0:06:53]} ({Weaker is} 27... Rxd3 28. Qe2) 28. Qxd3 {[%emt 0:03:53]} Nxd3 {[%emt 0:01:20]} (28... Rxd3 29. Rc1 g5 30. Rg4 Nxb3 31. Rc7 $17) 29. Rg4 {[%emt 0:00:25]} Kf8 {[%emt 0:10:17]} (29... h5 $19 30. Rg3 Red6) 30. Rg3 {[%emt 0:01:13]} (30. Nxe5 $17 Rxe5 31. Rg3) 30... Red6 {[%emt 0:00:13]} 31. Rd2 {[%emt 0:02:00]} (31. Ne1 $17 {might work better.} Nxe1 32. Rxe1) 31... g6 {[%emt 0:00:42]} (31... Nc1 $19 32. Rc2 Rc6 33. Rxc6 Ne2+ 34. Kh2 bxc6) 32. h4 {[%emt 0:04:52]} Ke7 {[%emt 0:00:42]} 33. Kh2 {[%emt 0:03:07]} (33. Kf1 $142) 33... Ke6 $19 {[%emt 0:01:04]} 34. Rc2 {[%emt 0:01:42]} Rb6 {[%emt 0:03:37]} 35. Rd2 {[%emt 0:00:42]} Rbd6 {[%emt 0:00:14]} ({Don't take} 35... Rxb3 36. Ne1 $14) (35... Rd7 $142 36. h5 gxh5) 36. Rc2 $1 {[%emt 0:00:19]} R8d7 {[%emt 0:00:28]} 37. Rc8 {[%emt 0:04:49]} Nxf2 {[%emt 0:00:48]} 38. Re8+ {[%emt 0:00:14]} Re7 {[%emt 0:00:17]} 39. Rxe7+ {[%emt 0:00:06]} Kxe7 {[%emt 0:00:01]} 40. Nxe5 {[%emt 0:00:17][%mdl 4096] Endgame KRN-KRN} Re6 {[%emt 0:01:51]} ({Worse is} 40... Nxe4 41. Rf3) 41. Ng4 {[%emt 0:33:00]} Nxe4 {[%emt 0:05:07]} 42. Rd3 {[%emt 0:00:00]} h5 {[%emt 0:00:53]} 43. Ne3 {[%emt 0:00:00]} Rd6 {[%emt 0:05:20]} 44. Nd5+ {[%emt 0:00:00]} Ke6 {[%emt 0:03:23]} 45. Nf4+ {[%emt 0:00:00]} Ke5 {[%emt 0:00:38]} 46. Rf3 {[%emt 0:00:00]} Nd2 {[%emt 0:02:34]} 47. Rf2 {[%emt 0:00:00]} Nxb3 {[%emt 0:00:13]} 48. Nh3 {[%emt 0:00:00]} f5 {[%emt 0:03:42]} 49. Re2+ {[%emt 0:00:00]} Kd4 {[%emt 0:00:20]} 50. Ng5 {[%emt 0:00:00]} b5 {[%emt 0:01:11]} 51. Ne6+ {[%emt 0:00:00]} Kc4 {[%emt 0:01:03]} 52. Rc2+ {[%emt 0:00:00]} Kb4 {[%emt 0:00:56]} 53. Nf4 {[%emt 0:00:00]} Nc5 {[%emt 0:01:01]} 54. Rc3 {[%emt 0:00:00]} a5 {[%emt 0:01:30][%cal Ba6a5,Ba5a4,Ba4a3,Ba3a2][%mdl 32]} 55. Rg3 {[%emt 0:00:00]} a4 {[%emt 0:00:30] [#] Hoping for ...Ne4.} 56. Ne2 {[%emt 0:00:00]} Rd2 {[%emt 0:02:20][%csl LRb2,LRe2]} 57. Nf4 {[%emt 0:00:00]} Rxb2 {[%emt 0:00:42]} 58. Nd5+ {[%emt 0:00:00]} Kc4 {[%emt 0:00:23]} 59. Nb6+ {[%emt 0:00:00]} Kd4 {[%emt 0:00:07]} 60. Rxg6 {[%emt 0:00:00]} a3 {[%emt 0:00:39]} 61. Rd6+ {[%emt 0:00:00]} Ke4 {[%emt 0:00:17]} 62. Rd1 {[%emt 0:00:00]} a2 {[%emt 0:00:24] ( -> ...Rb1)} 63. Nd5 {[%emt 0:00:00]} b4 {[%emt 0:01:12] Weighted Error Value: White=0.29 (precise) /Black=0.13 (very precise)} 0-1

[Event "1st Serbian League 2022"]
[Site "Vrnjacka Banja"]
[Date "2022.09.25"]
[Round "6.3"]
[White "Arsovic, Goran"]
[Black "Jocev, Milan"]
[Result "1-0"]
[ECO "E63"]
[WhiteElo "2362"]
[BlackElo "2283"]
[Annotator "TA"]
[PlyCount "80"]
[EventDate "2022.09.20"]
[EventType "team-tourn"]
[EventCountry "SRB"]
[SourceTitle "playchess.com"]
[Source "ChessBase"]
[SourceQuality "1"]
[TimeControl "40/5400+30:1800+30"]

{[%evp 14,80,49,16,26,22,36,18,79,73,96,56,51,63,57,55,42,36,33,38,25,35,31,28,46,-37,0,-12,0,0,31,-10,-14,-31,-22,-57,-10,-80,-52,-46,-54,-104,-102,-176,-160,-179,-158,-276,-69,-135,-66,-68,102,86,91,80,95,0,777,769,753,708,928,927,931,912,856,835,1335]} 1. d4 {[%emt 0:02:25]} Nf6 {[%emt 0:00:06]} 2. Nf3 {[%emt 0:00:07]} g6 {[%emt 0:00:12]} 3. c4 {[%emt 0:00:16]} Bg7 {[%emt 0:00:07]} 4. g3 {[%emt 0:00:06]} O-O {[%emt 0:00:08]} 5. Bg2 {[%emt 0:00:06]} d6 {[%emt 0:00:13]} 6. Nc3 {[%emt 0:00:22]} Nc6 {[%emt 0:00:17]} 7. O-O {[%emt 0:00:14]} a6 {[%emt 0:00:16]} 8. Bf4 {[%emt 0:02:28]} Rb8 {[%emt 0:00:23] E63: King's Indian: Fianchetto: Panno Variation with 7...a6.} 9. Rc1 {[%emt 0:00:29]} b5 {[%emt 0:00:50] 9...h6 is the modern continuation.} 10. Nd5 {[%emt 0:01:21] [#]} e6 $146 {[%emt 0:06:36]} (10... bxc4 $11 {keeps the balance.} 11. Nxf6+ exf6) ({Predecessor:} 10... bxc4 11. Nxf6+ exf6 12. Rxc4 Nb4 13. Qd2 Nd5 14. b3 Nxf4 15. Qxf4 Re8 16. Qd2 Qe7 {1-0 (35) Nguyen,N (2641)-Korobov,A (2688) Chess.com INT 2020}) 11. Nxf6+ $16 {[%emt 0:01:54]} Bxf6 {[%emt 0:00:06]} 12. b3 {[%emt 0:10:52]} Bb7 {[%emt 0:04:07]} 13. Bh6 {[%emt 0:16:23]} Re8 {[%emt 0:00:53]} 14. e4 {[%emt 0:01:35][%cal Be2e4,Be4e5][%mdl 32]} bxc4 {[%emt 0:31:15]} 15. Rxc4 {[%emt 0:11:55]} Ne7 {[%emt 0:07:41]} 16. e5 {[%emt 0:09:50]} Nf5 {[%emt 0:13:48]} 17. Bf4 {[%emt 0:03:41]} Bg7 {[%emt 0:04:47]} 18. Qc1 {[%emt 0:08:01]} Bd5 {[%emt 0:03:54]} 19. Ra4 {[%emt 0:03:06]} ({Inferior is} 19. Rxc7 Bxf3 20. Bxf3 Nxd4 $17) (19. Bg5 $14 f6 20. exf6 Bxf6 21. Bxf6 (21. Rxc7 Bxf3 22. Bxf6 Qxf6 $11) 21... Qxf6 22. Rxc7) 19... Rb6 {[%emt 0:02:05]} (19... c5 $5 20. dxc5 dxe5 $15) 20. Re1 {[%emt 0:05:11]} Bc6 $36 {[%emt 0:08:07][%mdl 2048] Black has the initiative.} 21. Rc4 {[%emt 0:02:01]} Qa8 {[%emt 0:02:53]} 22. Qd1 {[%emt 0:11:56]} dxe5 {[%emt 0:01:30]} 23. Bxe5 {[%emt 0:00:58]} Bxe5 {[%emt 0:06:02]} 24. Rxe5 {[%emt 0:00:14]} Bd5 {[%emt 0:04:17]} (24... Rd8 $15) 25. Ra4 {[%emt 0:03:52]} (25. Rxc7 $11 Qd8 26. Rc5) 25... Rd6 {[%emt 0:00:25]} 26. g4 {[%emt 0:01:43]} Ne7 {[%emt 0:00:23][%cal Bf5e7,Be7d5,Bd5f4][%mdl 32]} 27. Re3 {[%emt 0:01:32]} ({White should play} 27. Re1 $15) 27... Bc6 $17 {[%emt 0:00:43] aiming for ...Nd5.} 28. Rc4 {[%emt 0:01:01] [#]} (28. Ne1 $17) 28... Nd5 $1 $19 {[%emt 0:00:11]} 29. Re1 {[%emt 0:00:37]} Nf4 {[%emt 0:00:19][%cal Oe6e5]} 30. Re3 {[%emt 0:00:27]} (30. d5 $17 Nxg2 31. Kxg2 Bxd5 32. Rc3 (32. Rxc7 Qd8 $17)) 30... Qd8 $2 {[%emt 0:01:21]} (30... e5 $1 $19 {...exd4 is the strong threat.} 31. Bf1 exd4 32. Rxe8+ Qxe8 33. Nxd4 Bb5) 31. a4 {[%emt 0:00:41]} ({Better is} 31. Bf1 $1 $15) 31... Qf6 {[%emt 0:01:03]} (31... e5 $17 {White must now prevent ...exd4.} 32. Bf1 e4) 32. Bf1 $15 {[%emt 0:01:06]} h5 $2 {[%emt 0:00:25] [#]} (32... Red8 $15 {keeps the upper hand.}) 33. Ne5 $16 {[%emt 0:00:00]} Bd5 {[%emt 0:01:00]} 34. Rxc7 {[%emt 0:00:00]} Re7 {[%emt 0:00:19]} 35. Rec3 {[%emt 0:00:22] White is more active.} (35. Qc1 $16 Rd8 36. Bxa6) 35... Qh4 {[%emt 0:00:22][%mdl 8192]} (35... Bb7 $11) 36. Rxe7 $18 {[%emt 0:00:19] White is clearly winning.} Qxe7 {[%emt 0:00:09]} 37. Qc1 {[%emt 0:00:23]} Qf6 {[%emt 0:01:14]} 38. Rc8+ {[%emt 0:00:14]} Kg7 {[%emt 0:00:31]} 39. Rc7 {[%emt 0:00:07]} Rc6 {[%emt 0:00:15]} 40. Rxc6 {[%emt 0:00:53]} hxg4 {[%emt 0:01:17] Weighted Error Value: White=0.32/Black=0.33} 1-0

[Event "1st Serbian League 2022"]
[Site "Vrnjacka Banja"]
[Date "2022.09.25"]
[Round "6.4"]
[White "Stankovic, Boris"]
[Black "Rajkovic, Mladen"]
[Result "0-1"]
[ECO "C50"]
[WhiteElo "2208"]
[BlackElo "2335"]
[Annotator "TA"]
[PlyCount "78"]
[EventDate "2022.09.20"]
[EventType "team-tourn"]
[EventCountry "SRB"]
[SourceTitle "playchess.com"]
[Source "ChessBase"]
[SourceQuality "1"]
[TimeControl "40/5400+30:1800+30"]

{[%evp 13,78,-43,-14,-14,6,-27,-29,-21,-29,-31,-17,-44,-35,-47,-47,-59,-54,-49,-43,-68,-54,-75,-65,-109,-99,-191,-187,-222,-224,-216,-218,-215,-214,-270,-204,-235,-241,-240,-245,-231,-208,-245,-239,-369,-373,-416,-415,-474,-427,-586,-551,-934,-931,-915,-885,-1403,-1238,-1760,-1118,-29986,-29987,-29987,-29988,-29989,-29990,-29990,-29985]} 1. e4 {[%emt 0:04:50]} e5 {[%emt 0:04:55]} 2. Nf3 {[%emt 0:00:06]} Nc6 {[%emt 0:00:06]} 3. Bc4 {[%emt 0:00:05]} Bc5 {[%emt 0:00:15]} 4. O-O {[%emt 0:00:17]} Nf6 {[%emt 0:01:39]} 5. d4 {[%emt 0:00:11]} Bxd4 {[%emt 0:01:41]} 6. Nxd4 {[%emt 0:00:05]} Nxd4 {[%emt 0:00:38]} 7. Bg5 {[%emt 0:00:10]} d6 $1 {[%emt 0:06:59] 7...d6 is better than 7...h6.} 8. f4 {[%emt 0:00:18] C50: Hungarian Defence and Giuoco Pianissimo.} Be6 {[%emt 0:06:00]} 9. Na3 {[%emt 0:00:25]} Nc6 {[%emt 0:19:12][%cal Bd4c6,Bc6b8,Bb8d7,Bd7f6][%mdl 32] [#]} 10. f5 $146 {[%emt 0:18:38] Black has an edge.} ({Predecessor:} 10. c3 h6 11. Bxf6 Qxf6 12. Qb3 Rb8 13. f5 Bd7 14. Qd1 Ne7 15. Qc2 Bc6 16. Qd3 Qh4 17. Rae1 Rd8 {0-1 (17) Shytaj,L (2472)-Safarli,E (2606) Rijeka 2010}) 10... Bxc4 {[%emt 0:02:08]} 11. Nxc4 {[%emt 0:00:04]} h6 {[%emt 0:02:52]} 12. Bh4 {[%emt 0:01:28]} Nb8 {[%emt 0:02:27]} 13. Kh1 {[%emt 0:16:48]} Nbd7 {[%emt 0:00:55]} 14. Qf3 {[%emt 0:00:28]} O-O {[%emt 0:14:14]} 15. Ne3 {[%emt 0:08:13]} Qe8 {[%emt 0:02:20]} 16. Rad1 {[%emt 0:31:20]} Kh7 {[%emt 0:01:32]} 17. Qh3 {[%emt 0:03:36]} Rc8 {[%emt 0:10:30] Black keeps a firm grip on the game.} (17... Nxe4 18. Nd5 $11) 18. Bxf6 {[%emt 0:01:17]} Nxf6 {[%emt 0:00:19]} 19. Qh4 {[%emt 0:01:17]} (19. Ng4 $17) 19... Qc6 $19 {[%emt 0:01:54]} 20. Nd5 {[%emt 0:00:01]} Nxd5 {[%emt 0:01:04]} (20... Qxc2 21. Nxf6+ gxf6 22. Rg1) 21. exd5 {[%emt 0:01:00]} Qxc2 {[%emt 0:01:24]} 22. f6 {[%emt 0:00:07]} g6 {[%emt 0:06:01][%cal Bg7g6,Bg6g5][%mdl 32]} 23. Rde1 {[%emt 0:01:08]} c6 {[%emt 0:02:42]} 24. Re3 {[%emt 0:01:11][%cal Oh4h6]} g5 {[%emt 0:01:55]} (24... cxd5 25. Qxh6+ Kxh6 26. Rh3+ Kg5 27. Rg3+ Kh5 28. Rh3+ Kg5 29. Rg3+ Kh5 30. Rh3+ Kg5 $11) 25. Qb4 {[%emt 0:02:15]} cxd5 {[%emt 0:01:17] White must now prevent ...Qc4.} 26. Qxd6 {[%emt 0:00:14] [#]} Qf5 $3 {[%emt 0:02:07][%cal Rf5f1][%mdl 512]} 27. Kg1 {[%emt 0:02:49] [#]} (27. Ree1 Qe6) 27... Qe6 {[%emt 0:02:21]} 28. Qa3 {[%emt 0:01:34]} (28. Qxe5 {might work better.} Rfe8 29. Qxe6 Rxe6 30. Rxe6 fxe6 31. Re1) 28... a6 {[%emt 0:01:36]} 29. Rg3 {[%emt 0:03:53]} e4 {[%emt 0:00:41]} 30. Qe3 {[%emt 0:00:15]} Qe5 {[%emt 0:00:41]} 31. h4 {[%emt 0:00:41]} d4 {[%emt 0:00:38][%cal Bd5d4,Bd4d3][%mdl 32]} 32. Qb3 {[%emt 0:00:43]} d3 {[%emt 0:00:57]} 33. Rg4 {[%emt 0:00:30]} b5 {[%emt 0:01:02]} 34. hxg5 {[%emt 0:00:14]} hxg5 {[%emt 0:00:16]} 35. Qd1 {[%emt 0:00:40]} Qd4+ {[%emt 0:00:55]} 36. Kh1 {[%emt 0:00:38]} Kg6 {[%emt 0:00:18] Black mates.} 37. Rh4 {[%emt 0:00:47]} Rh8 {[%emt 0:00:34][%cal Rh8h4]} ({Much less strong is} 37... gxh4 38. Qg4+ Kh6 39. Qg7+ Kh5 40. Rf5#) 38. g3 {[%emt 0:00:32]} Rxh4+ {[%emt 0:00:30]} ({Don't take} 38... gxh4 39. Qg4+ Kh6 40. Qg7+ Kh5 41. g4#) 39. gxh4 {[%emt 0:00:00]} Rh8 {[%emt 0:00:01] Weighted Error Value: White=0.97/Black=0.33} 0-1